bitfinex/quotes_ETHUSD_20260125
["timestamp","ask_amount","ask_price","bid_price","bid_amount"]
[1769372123765,30.3615703,2802.7,2800.6,12.70444879]
[1769372123951,0.128,2802.5,2801.3,0.09275114]
[1769372124151,0.128,2802.5,2800.9,12.79719993]
[1769372124363,19.25322593,2802.4,2800.6,0.89264926]
[1769372124662,0.892188,2802.1,2800.5,13.59713246]
[1769372124854,0.892188,2802.1,2800.6,0.09275114]
[1769372125059,0.35789259,2802.0,2800.6,0.09275114]
[1769372125837,21.856,2801.9,2800.1,0.89580625]
[1769372126034,2.22138926,2801.8,2800.4,0.98546171]
[1769372126266,30.0,2801.9,2800.4,0.98546171]
[1769372126433,30.0,2802.0,2800.4,0.09275114]
[1769372126637,0.89225168,2801.9,2800.4,0.98547636]
[1769372127260,0.89225168,2801.9,2800.4,0.98547546]
[1769372127658,0.89225168,2801.9,2800.1,0.003]
[1769372127659,30.0,2801.8,2800.1,0.89580306]
[1769372127974,3.08922517,2801.7,2800.6,0.09275114]
[1769372128277,9.849,2801.9,2800.4,0.98548063]
[1769372128470,0.89224205,2802.0,2800.6,0.09275114]
[1769372128770,0.128,2802.0,2800.6,0.09275114]
[1769372129839,0.89204967,2802.6,2801.4,0.09275114]
[1769372130049,0.35789259,2802.4,2801.2,12.70444879]
[1769372130274,0.89298328,2802.8,2801.3,0.09275114]
[1769372130475,0.89298328,2802.8,2801.5,0.09275114]
[1769372130643,0.35789259,2802.7,2801.5,0.98512541]
[1769372130849,0.001,2802.8,2801.7,0.09275114]
[1769372131056,0.001,2802.8,2801.9,0.09275114]
[1769372131476,0.001,2802.8,2802.1,0.09275114]
[1769372131774,0.001,2802.8,2802.3,0.09275114]
[1769372132464,0.001,2802.8,2801.9,12.70444879]
[1769372132664,0.001,2802.8,2801.6,0.09275114]
[1769372132867,0.32904754,2802.7,2801.5,0.98510926]
[1769372133048,0.32904754,2802.7,2801.9,0.09275114]
[1769372133248,0.001,2802.6,2801.7,0.09275114]
[1769372133448,0.001,2802.6,2801.5,0.98511157]
[1769372133746,0.001,2802.6,2801.3,13.54519993]
[1769372134074,0.34612229,2802.5,2801.5,0.09275114]
[1769372134663,0.34612229,2802.5,2801.3,13.54519993]
[1769372134883,0.34612229,2802.5,2801.3,12.79719993]
[1769372135296,1.23818496,2802.5,2801.3,12.70444879]
[1769372136126,3.75,2802.4,2801.1,0.89250101]
[1769372136410,1.23818496,2802.5,2800.8,12.00090765]
[1769372136411,30.0,2802.2,2800.8,12.00090765]
[1769372136566,3.91086697,2802.1,2800.8,12.89350411]
[1769372136767,1.23832913,2802.1,2800.8,12.00090765]
[1769372136964,0.89217437,2802.2,2800.8,12.89350897]
[1769372137198,4.64211209,2802.4,2801.1,0.09275114]
[1769372137425,0.34612229,2802.3,2800.9,0.09275114]
[1769372137691,0.49882344,2802.2,2800.9,0.09275114]
[1769372138095,0.84494573,2802.2,2800.9,0.09275114]
[1769372138400,0.80404929,2802.1,2800.5,0.98542236]
[1769372138696,0.80404929,2802.1,2800.6,0.89266297]
[1769372138896,1.39750711,2802.0,2800.6,0.45563085]
[1769372139195,0.34553381,2801.9,2800.7,0.09275114]
[1769372139567,0.50528727,2802.0,2801.2,0.09275114]
[1769372139773,0.89219232,2802.1,2800.9,0.09275114]
[1769372140290,0.49882344,2802.2,2801.1,12.09365879]
[1769372140605,0.34553381,2802.5,2801.5,0.09275114]
[1769372140810,0.34553381,2802.5,2801.5,0.98512855]
[1769372141115,0.34553381,2802.5,2801.5,0.09275114]
[1769372142085,0.001,2802.6,2801.8,0.09275114]
[1769372142289,0.001,2802.6,2801.7,0.09275114]
[1769372142485,0.001,2802.6,2801.7,0.72651942]
[1769372142685,0.89303157,2802.6,2801.5,12.00090765]
[1769372142885,0.89303157,2802.6,2800.9,3.66297387]
[1769372142886,0.001,2802.6,2801.0,12.00090765]
[1769372143120,30.0,2802.5,2801.1,0.98525644]
[1769372143320,0.31953552,2802.5,2801.2,0.89245471]
[1769372143612,0.31953552,2802.5,2801.3,0.09275114]
[1769372143787,0.31953552,2802.5,2801.3,0.98519119]
[1769372144184,0.001,2802.6,2801.5,0.09275114]
[1769372144394,0.001,2802.6,2801.7,0.09275114]
[1769372144589,0.001,2802.6,2801.5,0.09275114]
[1769372144786,0.001,2802.6,2801.8,0.09275114]
[1769372144991,0.001,2802.6,2801.7,0.98704364]
[1769372145191,0.001,2802.4,2801.7,1.61165552]
[1769372145678,0.001,2802.4,2801.7,0.71935452]
[1769372145877,0.001,2802.4,2801.7,1.61166726]
[1769372146182,0.001,2802.4,2801.9,0.09275114]
[1769372147681,0.001,2802.4,2801.7,0.71935452]
[1769372148076,0.001,2802.6,2801.9,12.09365879]
[1769372148310,0.001,2802.6,2802.1,0.09275114]
[1769372148805,0.001,2802.6,2801.7,0.98705049]
[1769372148982,0.001,2802.6,2801.9,0.09275114]
[1769372150610,0.001,2802.6,2802.1,0.09275114]
[1769372151213,0.001,2802.6,2802.4,0.09275114]
[1769372151382,0.001,2802.8,2802.4,0.09275114]
[1769372151587,0.89176428,2803.5,2802.4,0.09275114]
[1769372151813,0.82086134,2803.4,2802.4,0.09275114]
[1769372151983,0.89158345,2804.0,2802.8,0.09275114]
[1769372152311,0.89158345,2804.0,2802.6,0.09275114]
[1769372152312,10.89142449,2804.5,2802.9,0.09275114]
[1769372152923,0.89142449,2804.5,2803.1,0.09275114]
[1769372153088,4.64141495,2804.6,2803.3,0.09275114]
[1769372154247,0.89141495,2804.6,2803.5,0.09275114]
[1769372154416,0.82069858,2804.5,2803.3,0.98454839]
[1769372154625,0.82069858,2804.5,2803.5,0.09275114]
[1769372154806,0.128,2804.2,2802.4,12.84065879]
[1769372155136,0.128,2804.0,2802.6,0.09275114]
[1769372155334,0.89161525,2803.9,2802.6,0.09275114]
[1769372156033,0.89161525,2803.9,2802.8,0.09275114]
[1769372156415,0.33886288,2803.8,2803.0,0.09275114]
[1769372156722,3.56595228,2804.4,2803.2,0.09275114]
[1769372156921,0.89145628,2804.4,2803.3,0.09275114]
[1769372157135,0.52778743,2804.3,2803.3,0.09275114]
[1769372157546,0.001,2804.4,2803.5,0.09275114]
[1769372158226,0.001,2804.4,2803.6,0.09275114]
[1769372158543,0.001,2804.4,2803.8,0.09275114]
[1769372158744,0.001,2804.4,2803.3,12.00090765]
[1769372158911,0.001,2804.4,2803.1,0.09275114]
[1769372159112,0.001,2804.4,2803.3,0.09275114]
[1769372160329,0.001,2804.4,2803.5,0.09275114]
[1769372160330,0.3576698,2804.4,2803.5,0.09275114]
[1769372160640,0.3576698,2804.4,2803.3,0.09275114]
[1769372160641,0.001,2804.4,2803.3,0.09275114]
[1769372161351,0.001,2804.4,2803.5,0.09275114]
[1769372161558,0.001,2804.4,2803.7,0.09275114]
[1769372161781,0.001,2804.4,2803.5,0.09275114]
[1769372162049,0.001,2804.4,2803.7,0.09275114]
[1769372162248,0.001,2804.4,2803.3,0.98453538]
[1769372162249,0.88341523,2804.8,2803.3,0.09275114]
[1769372162555,0.45767318,2804.7,2803.7,0.09275114]
[1769372163451,0.45767318,2804.7,2803.5,12.57984499]
[1769372163649,0.89139271,2804.6,2803.3,0.09275114]
[1769372163955,0.89139271,2804.6,2803.5,0.09275114]
[1769372164680,0.41714709,2805.0,2804.1,0.09275114]
[1769372164950,12.45594289,2805.7,2804.3,0.09275114]
[1769372164951,10.89107499,2805.6,2804.3,0.09275114]
[1769372165152,2.69113179,2805.5,2804.5,0.09275114]
[1769372165363,12.45594289,2806.1,2804.7,0.09275114]
[1769372165364,0.89105907,2805.7,2804.7,0.09275114]
[1769372165518,3.56395908,2805.9,2804.7,0.09275114]
[1769372165719,0.89097972,2805.9,2804.9,0.09275114]
[1769372166124,0.89085272,2806.3,2805.0,0.09275114]
[1769372166369,0.89085272,2806.3,2805.1,0.09275114]
[1769372166580,0.89085272,2806.3,2805.2,0.09275114]
[1769372166581,0.44542636,2806.2,2805.2,0.09275114]
[1769372166757,0.44542636,2806.2,2805.3,0.09275114]
[1769372167365,0.89083314,2806.4,2805.3,0.09275114]
[1769372167569,0.89083314,2806.4,2804.6,3.56547745]
[1769372167570,30.0,2806.3,2804.6,12.48709385]
[1769372167726,14.8077903,2806.2,2804.7,0.09275114]
[1769372167931,14.8077903,2806.2,2804.4,0.09275114]
[1769372167932,5.22493739,2806.2,2804.4,0.09275114]
[1769372168132,5.22493739,2806.2,2804.6,0.09275114]
[1769372168349,1.52249374,2806.1,2804.6,0.09275114]
[1769372168548,1.52249374,2806.1,2804.4,0.09275114]
[1769372168549,0.41714709,2806.0,2804.4,0.09275114]
[1769372168839,0.41714709,2806.0,2804.6,0.09275114]
[1769372169046,0.41714709,2806.0,2805.0,0.09275114]
[1769372169341,0.001,2805.5,2805.1,0.09275114]
[1769372169866,0.001,2805.5,2804.1,0.09275114]
[1769372170077,0.001,2805.5,2803.8,12.48709385]
[1769372170235,0.001,2805.5,2804.7,0.09275114]
[1769372170440,0.001,2805.5,2804.5,0.09275114]
[1769372170649,0.001,2805.5,2804.7,0.09275114]
[1769372171355,0.001,2805.5,2804.5,12.57984499]
[1769372171663,0.001,2805.5,2804.1,0.09275114]
[1769372171862,0.001,2805.5,2804.3,0.09275114]
[1769372172235,0.001,2805.5,2804.1,0.09275114]
[1769372172769,0.001,2805.5,2804.3,0.09275114]
[1769372173641,0.001,2805.5,2804.0,12.48709385]
[1769372173941,1.12636135,2805.5,2803.8,0.09275114]
[1769372174168,1.12636135,2805.5,2804.0,0.09275114]
[1769372174673,1.12636135,2805.5,2804.2,0.09275114]
[1769372175170,1.12636135,2805.5,2804.0,12.57984499]
[1769372175171,0.001,2805.5,2804.0,12.57984499]
[1769372175340,0.001,2805.5,2804.2,0.09275114]
[1769372175736,0.001,2805.5,2804.1,0.09275114]
[1769372175939,0.37352955,2805.4,2804.1,0.09275114]
[1769372176769,0.37352955,2805.4,2803.8,0.09275114]
[1769372177039,0.37352955,2805.4,2803.7,12.60566452]
[1769372177040,0.3615703,2805.3,2803.7,12.60566452]
[1769372177271,0.35630287,2805.2,2803.8,0.09275114]
[1769372177484,0.35630287,2805.2,2803.7,12.60566452]
[1769372177776,0.89123382,2805.1,2803.7,12.60566452]
[1769372177975,1.52526624,2805.0,2803.7,12.60566452]
[1769372178381,1.96545662,2805.0,2803.7,12.60566452]
[1769372180271,0.89129737,2804.9,2803.7,12.60566452]
[1769372180775,0.3615703,2805.3,2803.5,0.09275114]
[1769372180776,3.56544779,2805.5,2804.4,12.60566452]
[1769372180953,0.89113851,2805.4,2804.5,0.09275114]
[1769372181156,0.89113851,2805.4,2804.7,0.09275114]
[1769372181358,1.69325255,2805.4,2804.7,0.09275114]
[1769372181775,1.69325255,2805.4,2804.5,0.09275114]
[1769372184875,0.09275114,2804.5,2803.9,12.60766452]
[1769372185064,0.51688621,2805.3,2803.9,12.60766452]
[1769372185272,0.22101388,2805.2,2803.9,12.60766452]
[1769372185653,0.22101388,2805.2,2803.9,0.002]
[1769372186278,3.97101388,2805.2,2803.9,0.002]
[1769372186476,0.22101388,2805.2,2803.9,0.002]
[1769372186681,0.89123382,2805.1,2803.9,0.002]
[1769372186881,0.4677183,2805.0,2804.0,0.09275114]
[1769372187087,0.89123382,2805.1,2804.2,0.09275114]
[1769372187702,0.89123382,2805.1,2803.6,0.002]
[1769372187978,0.37715649,2805.0,2803.7,0.09275114]
[1769372188154,0.89123382,2805.1,2803.9,0.09275114]
[1769372188350,0.4677183,2805.0,2803.9,0.09275114]
[1769372188585,0.89129737,2804.9,2803.6,12.60766452]
[1769372188972,0.89129737,2804.9,2803.7,0.09275114]
[1769372189474,0.89129737,2804.9,2803.9,0.09275114]
[1769372189683,0.89129737,2804.9,2804.1,0.09275114]
[1769372190051,0.89128874,2805.0,2804.1,0.09275114]
[1769372190663,3.5649654,2805.1,2803.9,12.69841566]
[1769372190872,3.5649654,2805.1,2803.9,12.60566452]
[1769372191086,3.94212189,2805.1,2803.6,0.002]
[1769372191286,3.94212189,2805.1,2803.6,0.09475114]
[1769372191471,1.50543696,2805.0,2803.6,0.09475114]
[1769372191681,1.50543696,2805.0,2803.6,12.70041566]
[1769372193101,0.001,2804.9,2804.2,0.09275114]
[1769372193385,0.001,2804.9,2804.0,12.69841566]
[1769372193590,3.56457645,2805.4,2804.4,12.24197235]
[1769372194173,0.89113851,2805.4,2804.4,12.14922121]
[1769372194373,0.44565918,2805.3,2804.4,12.14922121]
[1769372194765,0.001,2805.5,2804.7,0.09275114]
[1769372194965,0.001,2805.5,2804.6,12.24197235]
[1769372195164,0.001,2805.5,2804.8,12.24197235]
[1769372195591,0.89088294,2806.3,2805.2,12.24197235]
[1769372195790,0.89072576,2806.7,2805.4,12.24197235]
[1769372195994,0.44535871,2806.6,2805.5,12.14922121]
[1769372196365,0.44535871,2806.6,2805.6,12.24197235]
[1769372196560,0.44535871,2806.6,2805.6,12.14922121]
[1769372197202,0.89078923,2806.5,2805.6,12.14922121]
[1769372198192,0.37715649,2806.4,2805.2,12.14922121]
[1769372198580,0.85876354,2806.4,2805.2,12.14922121]
[1769372198784,0.48160705,2806.3,2805.2,12.14922121]
[1769372199494,1.37247121,2806.3,2805.2,12.14922121]
[1769372199805,0.89082983,2806.4,2805.3,12.24197235]
[1769372200012,0.89073679,2806.7,2805.6,12.24197235]
[1769372201907,1.01863056,2807.0,2805.6,12.24197235]
[1769372202701,1.01863056,2807.0,2805.6,12.14922121]
[1769372202901,0.89063056,2807.0,2805.7,12.24197235]
[1769372203109,0.52961163,2806.9,2805.8,12.14922121]
[1769372203796,0.89069402,2806.8,2805.8,12.14922121]
[1769372204506,0.82455358,2806.7,2805.0,12.24197235]
[1769372204688,0.89069402,2806.8,2805.8,12.14922121]
[1769372204890,0.54645624,2806.7,2805.8,12.14922121]
[1769372206007,1.43719261,2806.7,2805.8,12.14922121]
[1769372206207,0.54645624,2806.7,2805.8,12.14922121]
[1769372206408,0.54645624,2806.7,2805.6,0.09275114]
[1769372206409,0.001,2806.8,2805.9,0.09275114]
[1769372206599,0.001,2806.8,2805.9,12.24197235]
[1769372206909,0.001,2806.8,2806.1,12.24197235]
[1769372207086,0.001,2806.8,2806.1,12.14922121]
[1769372207281,0.001,2806.8,2805.7,12.14922121]
[1769372207282,0.44642849,2806.8,2805.7,12.14922121]
[1769372207611,0.44642849,2806.8,2805.2,0.98393623]
[1769372207612,0.44642849,2806.8,2805.2,0.09275114]
[1769372207831,7.62,2806.6,2804.8,12.24197235]
[1769372208035,0.89078923,2806.5,2805.1,12.14922121]
[1769372208482,0.89078923,2806.5,2805.4,0.09275114]
[1769372208687,0.44539462,2806.4,2805.4,12.24197235]
[1769372209135,0.89077689,2806.6,2805.5,12.24197235]
[1769372210712,0.89072576,2806.7,2805.5,12.24197235]
[1769372210913,1.3371434,2806.8,2805.7,12.24197235]
[1769372211881,1.3371434,2806.8,2805.7,12.14922121]
[1769372212090,0.001,2806.8,2805.9,12.14922121]
[1769372212290,0.001,2806.8,2806.2,12.14922121]
[1769372212511,0.001,2806.8,2806.2,12.24197235]
[1769372212908,0.001,2806.8,2805.8,12.14922121]
[1769372213295,0.001,2806.8,2805.6,0.09275114]
[1769372213296,0.001,2806.8,2805.9,12.24197235]
[1769372213699,0.001,2806.8,2805.9,12.14922121]
[1769372214893,0.001,2806.8,2805.6,0.09275114]
[1769372214894,0.001,2806.8,2806.0,12.24197235]
[1769372215211,0.001,2806.8,2806.1,12.64922121]
[1769372215415,0.001,2806.8,2806.1,0.5]
[1769372215792,0.37707814,2806.8,2805.4,12.98897235]
[1769372215986,0.37707814,2806.8,2805.4,12.89622121]
[1769372216728,12.62374085,2806.3,2804.6,0.002]
[1769372216911,0.128,2805.8,2804.6,0.002]
[1769372217094,0.40641147,2805.7,2804.6,0.002]
[1769372217633,0.3615703,2805.6,2803.8,12.24397235]
[1769372217784,0.76764844,2805.6,2804.0,0.09275114]
[1769372218097,0.40607814,2805.5,2804.0,0.09275114]
[1769372218617,0.2335703,2805.9,2804.4,12.24197235]
[1769372218787,12.62374085,2806.1,2804.4,12.24197235]
[1769372218788,0.89107499,2805.6,2804.6,0.09275114]
[1769372218984,0.89107499,2805.6,2804.5,0.09275114]
[1769372219525,0.89102955,2805.8,2804.7,12.24197235]
[1769372219826,0.89091621,2806.1,2804.9,12.24197235]
[1769372219993,1.11994155,2806.1,2804.9,12.24197235]
[1769372220389,1.11994155,2806.1,2804.9,12.14922121]
[1769372220593,1.49999391,2806.1,2804.8,0.002]
[1769372221326,1.49999391,2806.1,2804.5,0.002]
[1769372221327,0.128,2805.7,2804.5,0.002]
[1769372221500,1.27517409,2805.6,2804.5,0.002]
[1769372221705,0.128,2805.7,2804.5,0.002]
[1769372221919,0.2335703,2805.9,2804.5,0.002]
[1769372222272,10.2335703,2805.9,2804.5,0.002]
[1769372222412,0.2335703,2805.9,2804.5,0.002]
[1769372222610,0.2335703,2805.9,2804.5,12.15122121]
[1769372222808,0.89101147,2805.8,2804.5,12.15122121]
[1769372224638,0.89101147,2805.8,2804.6,0.09275114]
[1769372224800,0.89094796,2806.0,2804.6,0.09275114]
[1769372225006,0.89094796,2806.0,2804.5,12.15122121]
[1769372225007,13.28085121,2806.0,2804.5,0.002]
[1769372225213,0.128,2805.8,2804.5,0.002]
[1769372225393,0.37039156,2805.7,2804.5,0.002]
[1769372225594,0.128,2805.6,2804.5,0.002]
[1769372225823,0.37039156,2805.5,2804.5,0.002]
[1769372226945,0.89113851,2805.4,2804.5,0.002]
[1769372227234,0.48260841,2805.3,2804.5,0.002]
[1769372227597,0.002,2804.4,2803.6,0.002]
[1769372227818,12.49547355,2805.1,2803.6,0.002]
[1769372228701,12.38990325,2805.0,2803.6,0.002]
[1769372228910,0.89132915,2804.8,2803.6,0.002]
[1769372229506,2.18995924,2804.9,2803.9,11.93511178]
[1769372229710,0.89128242,2805.0,2803.9,11.93511178]
[1769372230316,0.89128242,2805.0,2803.6,0.002]
[1769372230724,0.89128242,2805.0,2803.6,11.84436064]
[1769372231123,1.01920205,2805.2,2803.7,0.09275114]
[1769372231327,1.01920205,2805.2,2803.7,11.93511178]
[1769372231531,0.89120205,2805.2,2803.9,11.93511178]
[1769372231744,0.89120205,2805.2,2804.1,0.09275114]
[1769372232338,1.37380088,2805.3,2804.1,11.93511178]
[1769372232542,1.37380088,2805.3,2804.3,11.93511178]
[1769372232748,0.49383768,2805.2,2804.4,0.03565825]
[1769372233237,1.3850517,2805.2,2804.4,0.03565825]
[1769372233442,0.49383768,2805.2,2804.4,0.03565825]
[1769372233611,0.89118834,2805.3,2804.4,0.03565825]
[1769372233818,0.89118834,2805.3,2804.3,11.84236064]
[1769372234835,0.89112668,2805.5,2804.4,11.93511178]
[1769372235213,0.001,2805.6,2804.6,0.09275114]
[1769372235438,0.89208031,2805.6,2804.6,11.83802667]
[1769372235617,0.89208205,2805.6,2804.6,11.78979303]
[1769372235947,0.001,2805.6,2804.6,11.7053521]
[1769372236244,0.001,2805.6,2804.6,11.6208852]
[1769372236442,0.001,2805.6,2804.7,0.0806802]
[1769372236620,0.001,2805.6,2804.8,11.7693041]
[1769372236821,0.89207941,2805.6,2804.3,0.09275114]
[1769372237025,0.89207941,2805.6,2804.5,11.91035112]
[1769372237432,0.001,2805.6,2804.5,11.91035112]
[1769372238238,3.56364164,2806.2,2804.5,11.91035112]
[1769372238239,0.18586496,2806.3,2805.3,11.91035112]
[1769372238426,0.18586496,2806.3,2805.6,11.81759998]
[1769372238744,0.89080632,2806.5,2805.6,11.81759998]
[1769372239232,0.89182243,2806.4,2805.2,11.81759998]
[1769372239428,0.001,2806.4,2805.2,11.81759998]
[1769372239625,0.3937868,2806.4,2805.2,11.81759998]
[1769372239818,0.3937868,2806.4,2804.8,11.81759998]
[1769372239819,0.5207868,2806.3,2804.8,11.81759998]
[1769372240740,0.128,2806.3,2804.9,11.91035112]
[1769372241055,0.128,2806.3,2805.0,0.09275114]
[1769372241252,0.128,2806.3,2805.1,11.81759998]
[1769372241755,0.89088447,2806.2,2805.1,11.81759998]
[1769372243361,0.89088447,2806.2,2804.6,0.89136956]
[1769372243362,1.28367127,2806.2,2804.6,11.81759998]
[1769372243525,0.85102904,2806.1,2804.6,11.81759998]
[1769372243727,0.89094796,2806.0,2804.6,11.81759998]
[1769372245132,0.89094796,2806.0,2804.8,0.002]
[1769372247449,0.89094796,2806.0,2804.9,11.91035112]
[1769372247653,0.89101147,2805.8,2804.9,11.81759998]
[1769372248259,0.89101147,2805.8,2804.8,0.002]
[1769372249492,0.89100203,2805.9,2804.8,11.81959998]
[1769372249845,0.89094796,2806.0,2804.9,11.91035112]
[1769372251376,0.89094796,2806.0,2804.9,11.81759998]
[1769372251681,1.38234097,2806.0,2804.9,11.81759998]
[1769372257970,1.38234097,2806.0,2805.0,0.002]
[1769372258203,1.38234097,2806.0,2804.5,0.002]
[1769372258204,12.15934371,2805.6,2804.5,0.002]
[1769372258407,0.128,2805.4,2804.1,11.78546388]
[1769372258704,0.128,2805.4,2803.9,0.98436349]
[1769372258705,0.128,2805.4,2804.3,11.78546388]
[1769372259072,0.3927868,2805.5,2804.3,11.78546388]
[1769372259401,0.128,2805.8,2804.5,11.78546388]
[1769372259596,0.5207868,2805.8,2804.5,11.78546388]
[1769372260321,0.5207868,2805.8,2804.6,0.09275114]
[1769372260322,0.89104323,2805.7,2804.6,0.09275114]
[1769372260488,0.89104323,2805.7,2804.6,11.87821502]
[1769372260489,0.4976003,2805.7,2804.6,11.87821502]
[1769372260690,0.49139301,2806.0,2804.9,11.78546388]
[1769372260691,1.38236403,2806.0,2804.9,11.78546388]
[1769372260905,0.89097102,2806.0,2804.9,11.78546388]
[1769372262505,3.56477079,2806.1,2804.3,11.78546388]
[1769372262506,12.28734371,2805.9,2804.3,11.78546388]
[1769372262717,0.5207868,2805.9,2804.5,11.78546388]
[1769372262913,13.751,2806.1,2804.7,11.78546388]
[1769372262914,0.001,2806.1,2804.7,11.78546388]
[1769372263922,0.3927868,2806.0,2804.7,11.78546388]
[1769372264722,0.89097972,2805.9,2804.7,11.78546388]
[1769372266322,4.64097972,2805.9,2804.7,11.78546388]
[1769372266508,0.89097972,2805.9,2804.7,11.78546388]
[1769372267602,0.89097972,2805.9,2804.3,11.78546388]
[1769372267603,0.128,2805.8,2804.3,11.78546388]
[1769372267929,0.61276854,2805.8,2804.3,11.78546388]
[1769372268131,1.11420493,2805.8,2804.4,11.87821502]
[1769372268434,0.61276854,2805.8,2804.6,11.87821502]
[1769372268615,0.61276854,2805.8,2804.6,11.77221748]
[1769372268804,0.61276854,2805.8,2804.6,11.51289241]
[1769372268997,0.61276854,2805.8,2804.6,11.16701869]
[1769372269198,0.61276854,2805.8,2804.6,10.86426061]
[1769372269499,0.89104323,2805.7,2804.6,10.65748441]
[1769372269708,0.89104323,2805.7,2804.6,10.47894516]
[1769372269909,1.3979417,2805.7,2804.6,10.29076831]
[1769372270110,1.3979417,2805.7,2804.6,10.29276831]
[1769372272407,0.89202278,2805.8,2804.8,11.78546388]
[1769372273039,0.001,2805.8,2804.9,11.87821502]
[1769372273237,0.89201172,2805.8,2804.9,11.87821502]
[1769372274313,0.001,2805.8,2804.9,11.87821502]
[1769372275440,0.001,2805.8,2805.2,11.78546388]
[1769372277372,0.001,2805.8,2804.9,11.78546388]
[1769372278618,0.001,2805.8,2805.1,11.78546388]
[1769372280134,0.001,2806.1,2805.3,11.78546388]
[1769372280323,0.001,2806.1,2805.5,11.78546388]
[1769372281634,0.001,2806.1,2805.6,11.78546388]
[1769372282133,0.001,2806.1,2805.4,0.09275114]
[1769372282134,0.001,2806.4,2805.5,11.78546388]
[1769372282450,0.001,2806.8,2806.1,11.78546388]
[1769372282651,0.001,2806.8,2806.3,11.78546388]
[1769372283021,0.89049163,2807.5,2806.1,12.73619007]
[1769372283235,12.8663729,2807.5,2806.1,12.73619007]
[1769372283642,12.8663729,2807.5,2806.3,12.73619007]
[1769372283643,0.89049163,2807.5,2806.3,12.73619007]
[1769372283843,0.44523794,2807.4,2806.3,12.73619007]
[1769372284360,0.44523794,2807.4,2806.4,12.82894121]
[1769372284528,3.75,2808.2,2806.4,12.82894121]
[1769372284530,11.97588127,2808.3,2806.8,12.82894121]
[1769372284848,0.89026977,2808.2,2807.0,12.82894121]
[1769372285056,0.001,2808.4,2807.0,12.82894121]
[1769372285057,0.89119597,2808.4,2807.0,12.82894121]
[1769372286265,0.89119597,2808.4,2807.1,0.09275114]
[1769372286447,0.89119597,2808.4,2807.1,12.82894121]
[1769372286762,0.44519423,2808.3,2807.1,12.82894121]
[1769372286958,1.33542824,2808.3,2807.1,12.82894121]
[1769372287382,1.33542296,2808.3,2807.1,12.82894121]
[1769372288178,1.33542296,2808.3,2806.7,12.73619007]
[1769372288179,13.31130423,2808.3,2806.7,12.73619007]
[1769372288361,11.97588127,2808.1,2806.7,12.73619007]
[1769372288691,1.24342488,2808.0,2806.7,12.73619007]
[1769372289036,0.89034509,2807.9,2806.7,12.73619007]
[1769372289386,0.89027737,2808.2,2807.1,12.73619007]
[1769372290175,12.86615864,2808.2,2806.7,12.73619007]
[1769372290503,12.34183217,2808.1,2806.7,12.73619007]
[1769372290662,11.97588127,2807.9,2806.4,0.747]
[1769372290862,12.34183217,2807.9,2806.4,0.747]
[1769372291081,1.2563277,2807.8,2806.4,0.747]
[1769372291890,4.88462088,2808.0,2806.9,12.82894121]
[1769372291891,1.32321095,2808.0,2806.9,12.82894121]
[1769372292073,3.68908727,2808.2,2806.9,12.82894121]
[1769372292490,3.68908727,2808.2,2806.9,12.73619007]
[1769372292691,3.68908727,2808.2,2806.4,0.747]
[1769372292692,0.3974509,2808.1,2806.7,12.73619007]
[1769372292867,3.68908727,2808.2,2806.9,12.73619007]
[1769372293291,0.001,2808.1,2806.9,12.73619007]
[1769372293493,0.40875382,2808.0,2807.0,12.82894121]
[1769372293698,0.001,2808.1,2807.0,12.82894121]
[1769372294197,0.3974509,2808.0,2806.6,12.68619007]
[1769372294395,0.3974509,2808.0,2806.8,0.09275114]
[1769372294691,0.001,2808.1,2807.2,0.09275114]
[1769372294892,0.001,2808.1,2807.0,12.82894121]
[1769372295197,0.001,2808.1,2807.1,12.73619007]
[1769372295391,0.001,2808.1,2807.2,12.88708298]
[1769372295971,0.001,2808.1,2807.4,12.88708298]
[1769372296497,0.001,2808.1,2807.7,0.09275114]
[1769372296666,0.001,2808.4,2807.8,0.09275114]
[1769372298301,0.001,2808.4,2807.7,12.79433184]
[1769372298697,0.001,2808.4,2807.1,13.54033184]
[1769372298910,0.001,2808.4,2806.4,0.09275114]
[1769372298911,12.88042298,2808.4,2806.4,0.09275114]
[1769372299208,0.128,2808.2,2806.7,13.54033184]
[1769372299411,0.57099581,2808.2,2806.7,13.54033184]
[1769372299588,12.87942298,2808.0,2806.4,12.88708298]
[1769372299792,13.27687388,2808.0,2806.4,13.63308298]
[1769372300285,1.7706832,2807.9,2806.4,13.63308298]
[1769372300492,1.32768739,2807.9,2806.6,0.09275114]
[1769372300892,1.32768739,2807.9,2806.8,0.09275114]
[1769372301119,0.89028168,2808.1,2806.8,0.09275114]
[1769372301919,1.28773258,2808.1,2806.8,0.09275114]
[1769372302209,1.28773258,2808.1,2807.0,12.88708298]
[1769372302384,3.56087774,2808.3,2807.2,0.09275114]
[1769372302580,0.35618777,2808.2,2807.2,0.09275114]
[1769372302816,0.35618777,2808.2,2807.0,12.88708298]
[1769372303110,0.89028168,2808.1,2807.0,12.88708298]
[1769372305288,0.89028168,2808.1,2807.5,0.09275114]
[1769372305490,1.24644237,2808.2,2807.3,12.88708298]
[1769372305710,0.8902546,2808.2,2807.3,12.88708298]
[1769372307022,0.8902546,2808.2,2807.3,12.79433184]
[1769372307393,0.001,2808.4,2807.3,12.79433184]
[1769372308901,0.001,2808.4,2806.7,12.79433184]
[1769372308902,0.60809876,2807.2,2806.7,12.79433184]
[1769372309104,13.30479055,2808.0,2806.6,0.002]
[1769372309411,0.8903768,2807.8,2806.6,0.002]
[1769372309610,1.75874018,2807.8,2806.6,0.002]
[1769372309939,1.31574437,2807.8,2806.6,0.002]
[1769372310713,1.75874018,2807.8,2806.6,0.002]
[1769372310996,1.31574437,2807.8,2806.6,0.002]
[1769372311202,1.06376888,2807.7,2806.6,0.002]
[1769372311393,0.89044023,2807.6,2806.6,0.002]
[1769372311598,0.89044023,2807.6,2806.4,12.88908298]
[1769372311599,13.53836085,2807.5,2806.4,0.002]
[1769372311798,13.98135666,2807.5,2806.4,0.002]
[1769372312101,13.24099328,2807.3,2805.7,0.746]
[1769372312537,12.87942298,2807.2,2805.8,0.09275114]
[1769372313126,12.87942298,2807.2,2805.8,12.71833609]
[1769372313534,0.89059883,2807.1,2806.0,0.09275114]
[1769372313919,0.89059883,2807.1,2805.8,12.71833609]
[1769372314238,1.73323569,2807.0,2805.8,12.71833609]
[1769372315233,1.73323569,2807.0,2805.8,12.62558495]
[1769372315433,12.52936611,2806.8,2805.5,12.62558495]
[1769372315633,12.52936611,2806.6,2805.2,0.002]